Workbook

Sheet результаты
M1: Стартовый БР: | P1: 10
B2: Турнирная игра | G2: Кэш игра
B3: Статистика | G3: Статистика
B4: Сыграно турниров: | C4: =COUNTIF(турниры!B:B,"<20000") -> 27 | G4: Сыграно сессий: | H4: =COUNT('кэш игра'!B2:B301) -> 0 | K4: Сумма на счёте: | M4: =P1+C7+H7 -> 13.65
B5: Выиграно: | C5: =SUM(турниры!H2:H501) -> 10.4 | G5: Вложено: | H5: =SUM('кэш игра'!B2:B301) -> 0
B6: Вложено: | C6: =SUM(турниры!B2:B501) -> 6.75 | G6: Снято: | H6: =SUM('кэш игра'!C2:C301) -> 0
B7: Прибыль: | C7: =C5-C6 -> 3.65 | G7: Итог: | H7: =H6-H5 -> 0
B8: ROI: | C8: =C7/C6 -> 0.5407407407

Sheet турниры
A1: № | B1: Buy-in | C1: Тип | D1: Рум | E1: Результат | F1: Дата | G1: Комментарий | H1: Приз | I1: =результаты!M4 -> 13.65
A2: 1 | B2: 0.25 | C2: SnG | D2: PS | E2: 24 | F2: 2020-02-12 | G2: вылетел выставившись в 10 бб против 4-х с AQs | H2: 0 | I2: =H2-B2 -> -0.25
A3: 2 | B3: 0.25 | C3: SnG | D3: PS | E3: 45 | F3: 2020-02-12 | G3: выставился перфлоп на весь стек с АКs против Ats | H3: 0 | I3: =H3+I2-B3 -> -0.5
A4: 3 | B4: 0.25 | C4: SnG | D4: PS | E4: - | F4: 2020-02-12 | G4: запушил первым 8 бб c 88 | H4: 0 | I4: -0.75
A5: 4 | B5: 0.25 | C5: SnG | D5: PS | F5: 2020-02-12 | G5: вылетел выставившись в 10 бб против 4-х с AQs | H5: 0 | I5: -1
A6: 5 | B6: 0.25 | C6: SnG | D6: PS | E6: 14 | F6: 2020-02-12 | G6: 3бет пуш 13 бб КК<AQo | H6: 0 | I6: -1.25
A7: 6 | B7: 0.25 | C7: SnG | D7: PS | E7: 5 | F7: 2020-02-12 | G7: Пуш c СБ в ББ 10бб 77<A5s | H7: 0.93 | I7: -0.57
A8: 7 | B8: 0.25 | C8: SnG | D8: PS | E8: 16 | F8: 2020-02-12 | G8: 3бет пуш 6 бб KQs<A3o | H8: 0 | I8: -0.82
A9: 8 | B9: 0.25 | C9: SnG | D9: PS | E9: 9 | F9: 2020-02-12 | G9: 3бет пуш 4.5бб Aqo<Kjo | H9: 0 | I9: -1.07
A10: 9 | B10: 0.25 | C10: SnG | D10: PS | E10: 4 | F10: 2020-02-12 | G10: Колл алл-ына c BTN с Ajo у нас 7бб мы саммые короткие "Ajo<Aqo" | H10: 1.29 | I10: -0.03
A11: 10 | B11: 0.25 | C11: SnG | D11: PS | E11: 18 | F11: 2020-02-12 | H11: 0 | I11: -0.28
A12: 11 | B12: 0.25 | C12: SnG | D12: PS | E12: 5 | F12: 2020-02-12 | G12: Пуш в короткого на ББ у нас 7 бб A8o<220,93 | H12: 0 | I12: -0.53
A13: 12 | B13: 0.25 | C13: SnG | D13: PS | E13: 24 | F13: 2020-02-12 | G13: 4бет пуш на 30бб с QQ vs KK | H13: 0 | I13: -0.78
A14: 13 | B14: 0.25 | C14: SnG | D14: PS | E14: 12 | F14: 2020-02-12 | G14: ColdCall 2бб с JQs | H14: 0 | I14: -1.03
A15: 14 | B15: 0.25 | C15: SnG | D15: PS | E15: 5 | F15: 2020-02-12 | G15: Опенпуш 5бб с с БТН 55<A8s | H15: 0.93 | I15: -0.35
A16: 15 | B16: 0.25 | C16: SnG | D16: PS | E16: 44-45 | F16: 2020-02-12 | G16: префлоп выставление с КК JJ<KK<Aqs | H16: 0 | I16: -0.6
A17: 16 | B17: 0.25 | C17: SnG | D17: PS | E17: 17 | F17: 2020-02-12 | G17: 3бет пуш 7бб A6s>JQs | H17: 0 | I17: =H17+I16-B17 -> -0.85
A18: 17 | B18: 0.25 | C18: SnG | D18: PS | E18: 3 | F18: 2020-02-12 | G18: пуш 12 бб с СБ Kjo<KK | H18: 1.7 | I18: =H18+I17-B18 -> 0.6
A19: 18 | B19: 0.25 | C19: SnG | D19: PS | E19: 9 | F19: 2020-02-12 | G19: пуш 7 бб с УТГ QJs<KK | H19: 0 | I19: =H19+I18-B19 -> 0.35
A20: 19 | B20: 0.25 | C20: SnG | D20: PS | E20: 11 | F20: 2020-02-12 | G20: пуш с СБ в ББ 8бб A8o<ATs | H20: 0 | I20: =H20+I19-B20 -> 0.1
A21: 20 | B21: 0.25 | C21: SnG | D21: PS | E21: 17 | F21: 2020-02-12 | G21: 3бетпуш 8бб с QJs<A3s | H21: 0 | I21: =H21+I20-B21 -> -0.15
A22: 21 | B22: 0.25 | C22: SnG | D22: PS | E22: 10 | F22: 2020-02-12 | G22: 3бетпуш 11бб против чипака QJs>Ako | H22: 0 | I22: =H22+I21-B22 -> -0.4
A23: 22 | B23: 0.25 | C23: SnG | D23: PS | E23: 18 | F23: 2020-02-12 | G23: Опенпуш 8бб с Kqo<QQ | H23: 0 | I23: =H23+I22-B23 -> -0.65
A24: 23 | B24: 0.25 | C24: SnG | D24: PS | E24: 17 | F24: 2020-02-12 | G24: опенпуш 11бб с СО 88<Aqo | H24: 0 | I24: =H24+I23-B24 -> -0.9
A25: 24 | B25: 0.25 | C25: SnG | D25: PS | E25: 8 | F25: 2020-02-12 | H25: 0 | I25: =H25+I24-B25 -> -1.15
A26: 25 | B26: 0.25 | C26: SnG | D26: PS | E26: 6 | F26: 2020-02-12 | H26: 0.62 | I26: =H26+I25-B26 -> -0.78
A27: 26 | B27: 0.25 | C27: SnG | D27: PS | E27: 3 | F27: 2020-02-12 | G27: колл 4бет пуша СБвсББ QQ<K2s | H27: 1.7 | I27: =H27+I26-B27 -> 0.67
A28: 27 | B28: 0.25 | C28: SnG | D28: PS | E28: 1 | F28: 2020-02-12 | G28: Победа! | H28: 3.23 | I28: =H28+I27-B28 -> 3.65
A29: 28 | I29: =H29+I28-B29 -> 3.65
A30: 29 | I30: 3.65
A31: 30 | I31: 3.65
A32: 31 | I32: 3.65
A33: 32 | I33: 3.65
A34: 33 | I34: 3.65
A35: 34 | I35: 3.65
A36: 35 | I36: 3.65
A37: 36 | I37: 3.65
A38: 37 | I38: 3.65
A39: 38 | I39: 3.65
A40: 39 | I40: 3.65
A41: 40 | I41: 3.65
A42: 41 | I42: 3.65
A43: 42 | I43: 3.65
A44: 43 | I44: 3.65
A45: 44 | I45: 3.65
A46: 45 | I46: 3.65
A47: 46 | I47: 3.65
A48: 47 | I48: 3.65
A49: 48 | I49: 3.65
A50: 49 | I50: 3.65
A51: 50 | I51: 3.65
A52: 51 | I52: 3.65
A53: 52 | I53: 3.65
A54: 53 | I54: 3.65
A55: 54 | I55: 3.65
A56: 55 | I56: 3.65
A57: 56 | I57: 3.65
A58: 57 | I58: 3.65
A59: 58 | I59: 3.65
A60: 59 | I60: 3.65
A61: 60 | I61: 3.65
A62: 61 | I62: 3.65
A63: 62 | I63: 3.65
A64: 63 | I64: 3.65
A65: 64 | I65: 3.65
A66: 65 | I66: 3.65
A67: 66 | I67: =H67+I66-B67 -> 3.65
A68: 67 | I68: 3.65
A69: 68 | I69: 3.65
A70: 69 | I70: 3.65
A71: 70 | I71: 3.65
A72: 71 | I72: 3.65
A73: 72 | I73: 3.65
A74: 73 | I74: 3.65
A75: 74 | I75: 3.65
A76: 75 | I76: 3.65
A77: 76 | I77: 3.65
A78: 77 | I78: 3.65
A79: 78 | I79: 3.65
A80: 79 | I80: 3.65
A81: 80 | I81: 3.65
A82: 81 | I82: 3.65
A83: 82 | I83: 3.65
A84: 83 | I84: 3.65
A85: 84 | I85: 3.65
A86: 85 | I86: 3.65
A87: 86 | I87: 3.65
A88: 87 | I88: 3.65
A89: 88 | I89: 3.65
A90: 89 | I90: 3.65
A91: 90 | I91: 3.65
A92: 91 | I92: 3.65
A93: 92 | I93: 3.65
A94: 93 | I94: 3.65
A95: 94 | I95: 3.65
A96: 95 | I96: 3.65
A97: 96 | I97: 3.65
A98: 97 | I98: 3.65
A99: 98 | I99: 3.65
A100: 99 | I100: 3.65
A101: 100 | I101: 3.65
A102: 101 | I102: 3.65
A103: 102 | I103: 3.65
A104: 103 | I104: 3.65
A105: 104 | I105: 3.65
A106: 105 | I106: 3.65
A107: 106 | I107: 3.65
A108: 107 | I108: 3.65
A109: 108 | I109: 3.65
A110: 109 | I110: 3.65
A111: 110 | I111: 3.65
A112: 111 | I112: 3.65
A113: 112 | I113: 3.65
A114: 113 | I114: 3.65
A115: 114 | I115: 3.65
A116: 115 | I116: 3.65
A117: 116 | I117: 3.65
A118: 117 | I118: 3.65
A119: 118 | I119: 3.65
A120: 119 | I120: 3.65
A121: 120 | I121: 3.65
A122: 121 | I122: 3.65
A123: 122 | I123: 3.65
A124: 123 | I124: 3.65
A125: 124 | I125: 3.65
A126: 125 | I126: 3.65
A127: 126 | I127: 3.65
A128: 127 | I128: 3.65
A129: 128 | I129: 3.65
A130: 129 | I130: 3.65
A131: 130 | I131: =H131+I130-B131 -> 3.65
A132: 131 | I132: 3.65
A133: 132 | I133: 3.65
A134: 133 | I134: 3.65
A135: 134 | I135: 3.65
A136: 135 | I136: 3.65
A137: 136 | I137: 3.65
A138: 137 | I138: 3.65
A139: 138 | I139: 3.65
A140: 139 | I140: 3.65
A141: 140 | I141: 3.65
A142: 141 | I142: 3.65
A143: 142 | I143: 3.65
A144: 143 | I144: 3.65
A145: 144 | I145: 3.65
A146: 145 | I146: 3.65
A147: 146 | I147: 3.65
A148: 147 | I148: 3.65
A149: 148 | I149: 3.65
A150: 149 | I150: 3.65
A151: 150 | I151: 3.65
A152: 151 | I152: 3.65
A153: 152 | I153: 3.65
A154: 153 | I154: 3.65
A155: 154 | I155: 3.65
A156: 155 | I156: 3.65
A157: 156 | I157: 3.65
A158: 157 | I158: 3.65
A159: 158 | I159: 3.65
A160: 159 | I160: 3.65
A161: 160 | I161: 3.65
A162: 161 | I162: 3.65
A163: 162 | I163: 3.65
A164: 163 | I164: 3.65
A165: 164 | I165: 3.65
A166: 165 | I166: 3.65
A167: 166 | I167: 3.65
A168: 167 | I168: 3.65
A169: 168 | I169: 3.65
A170: 169 | I170: 3.65
A171: 170 | I171: 3.65
A172: 171 | I172: 3.65
A173: 172 | I173: 3.65
A174: 173 | I174: 3.65
A175: 174 | I175: 3.65
A176: 175 | I176: 3.65
A177: 176 | I177: 3.65
A178: 177 | I178: 3.65
A179: 178 | I179: 3.65
A180: 179 | I180: 3.65
A181: 180 | I181: 3.65
A182: 181 | I182: 3.65
A183: 182 | I183: 3.65
A184: 183 | I184: 3.65
A185: 184 | I185: 3.65
A186: 185 | I186: 3.65
A187: 186 | I187: 3.65
A188: 187 | I188: 3.65
A189: 188 | I189: 3.65
A190: 189 | I190: 3.65
A191: 190 | I191: 3.65
A192: 191 | I192: 3.65
A193: 192 | I193: 3.65
A194: 193 | I194: 3.65
A195: 194 | I195: =H195+I194-B195 -> 3.65
A196: 195 | I196: 3.65
A197: 196 | I197: 3.65
A198: 197 | I198: 3.65
A199: 198 | I199: 3.65
A200: 199 | I200: 3.65
... 302 more rows

Sheet кэш игра
A1: № | B1: вложено | C1: снято | D1: комментарии
A2: 1
A3: 2
A4: 3
A5: 4
A6: 5
A7: 6
A8: 7
A9: 8
A10: 9
A11: 10
A12: 11
A13: 12
A14: 13
A15: 14
A16: 15
A17: 16
A18: 17
A19: 18
A20: 19
A21: 20
A22: 21
A23: 22
A24: 23
A25: 24
A26: 25
A27: 26
A28: 27
A29: 28
A30: 29
A31: 30
A32: 31
A33: 32
A34: 33
A35: 34
A36: 35
A37: 36
A38: 37
A39: 38
A40: 39
A41: 40
A42: 41
A43: 42
A44: 43
A45: 44
A46: 45
A47: 46
A48: 47
A49: 48
A50: 49
A51: 50
A52: 51
A53: 52
A54: 53
A55: 54
A56: 55
A57: 56
A58: 57
A59: 58
A60: 59
A61: 60
A62: 61
A63: 62
A64: 63
A65: 64
A66: 65
A67: 66
A68: 67
A69: 68
A70: 69
A71: 70
A72: 71
A73: 72
A74: 73
A75: 74
A76: 75
A77: 76
A78: 77
A79: 78
A80: 79
A81: 80
A82: 81
A83: 82
A84: 83
A85: 84
A86: 85
A87: 86
A88: 87
A89: 88
A90: 89
A91: 90
A92: 91
A93: 92
A94: 93
A95: 94
A96: 95
A97: 96
A98: 97
A99: 98
A100: 99
A101: 100
A102: 101
A103: 102
A104: 103
A105: 104
A106: 105
A107: 106
A108: 107
A109: 108
A110: 109
A111: 110
A112: 111
A113: 112
A114: 113
A115: 114
A116: 115
A117: 116
A118: 117
A119: 118
A120: 119
A121: 120
A122: 121
A123: 122
A124: 123
A125: 124
A126: 125
A127: 126
A128: 127
A129: 128
A130: 129
A131: 130
A132: 131
A133: 132
A134: 133
A135: 134
A136: 135
A137: 136
A138: 137
A139: 138
A140: 139
A141: 140
A142: 141
A143: 142
A144: 143
A145: 144
A146: 145
A147: 146
A148: 147
A149: 148
A150: 149
A151: 150
A152: 151
A153: 152
A154: 153
A155: 154
A156: 155
A157: 156
A158: 157
A159: 158
A160: 159
A161: 160
A162: 161
A163: 162
A164: 163
A165: 164
A166: 165
A167: 166
A168: 167
A169: 168
A170: 169
A171: 170
A172: 171
A173: 172
A174: 173
A175: 174
A176: 175
A177: 176
A178: 177
A179: 178
A180: 179
A181: 180
A182: 181
A183: 182
A184: 183
A185: 184
A186: 185
A187: 186
A188: 187
A189: 188
A190: 189
A191: 190
A192: 191
A193: 192
A194: 193
A195: 194
A196: 195
A197: 196
A198: 197
A199: 198
A200: 199
... 101 more rows
